[Event "FRA-ch 58 Championnat"]
[Site "Belfort"]
[Date "1983.08.14"]
[Round "3"]
[White "Giffard, Nicolas"]
[Black "Haik, Aldo"]
[Result "1-0"]
[ECO "A55"]
[WhiteElo "2345"]
[BlackElo "2400"]
[Annotator "Primel,D"]
[PlyCount "81"]
[EventDate "1983.08.12"]
[EventType "tourn"]
[EventRounds "15"]
[EventCountry "FRA"]
[EventCategory "2"]
[SourceTitle "EXT 2016"]
[Source "ChessBase"]
[SourceDate "2015.10.08"]
[SourceVersion "1"]
[SourceVersionDate "2015.10.08"]
[SourceQuality "1"]
[TimeControl "40/9000:16/5400:0"]

1. d4 Nf6 2. c4 d6 3. Nc3 Nbd7 4. e4 (4. Nf3 e5 5. Bg5 $1 {Considéré comme
plus précis si les Noirs jouent e5 avant c6} Be7 6. e3 O-O 7. Qc2 c6 8. Bd3 h6
9. Bh4 Re8 10. O-O-O {[%cal Gg2g4]} (10. O-O)) 4... e5 5. Nf3 Be7 6. Be2 O-O 7.
O-O c6 8. Re1 {[%cal Ge2f1,Ge1e4]} (8. Qc2) (8. Be3) 8... a6 9. Bf1 Qc7 (9...
b5 {La ligne principale} 10. a3 $1 Bb7 11. h3 $1 Re8 12. Be3 (12. Bg5 h6 13.
Bh4 Qb8 14. Bg3 Bf8) 12... exd4 13. Nxd4 Bf8 14. Nf5 {[%csl Gf5]} Ne5 15. cxb5
cxb5 16. Bg5 h6) 10. h3 (10. a3) (10. Bg5) 10... Re8 (10... b5 11. a3) 11. a3
$1 b5 12. Be3 (12. Bg5 Bb7 13. Rc1 $14 {[%cal Gc1c7]}) 12... Bb7 13. Rc1 Qb8 {
[%csl Ra8]} 14. b4 $16 exd4 (14... Bf8 {[%cal Ge5d4,Gf6e4]}) 15. Nxd4 Bf8 {
[%csl Re4]} 16. Nf5 $1 {[%csl Ra8,Rb8][%cal Gf5g7,Gf5d6] C'est l'inconvénient
d'avoir joué ed4 qui a activé le N} Ne5 (16... Nxe4 $2 17. Nh6+ $1 {[%csl
Re4][%cal Gd1g4]} gxh6 18. Qg4+ Ng5 19. Qxd7 $36) 17. Bg5 $14 Nfd7 $8 (17...
Nxc4 $2 18. Bxc4 (18. Bxf6 $5 gxf6 19. Bxc4 bxc4) 18... bxc4 19. Bxf6 gxf6 20.
Re3 $40 (20. Qg4+ $36)) (17... bxc4) 18. c5 {[%csl Rb7]} (18. cxb5 $5 axb5 19.
a4 $1 {Plus simple: Le plan a3 b4 est de gagner de l'espace а l'aile-dame et
après la poussée b7b5, l'avance a4 laisse un avantage durable aux blancs.})
18... dxc5 19. f4 cxb4 $1 (19... h6) 20. fxe5 Nxe5 21. axb4 Bxb4 $132 {[%csl
Ga6,Gb5,Gc6][%cal Ga6a1,Gb5b1,Gc6c1]} 22. Qb3 a5 $44 23. Red1 Bc8 24. Ne2 Nc4 (
24... Be6 $1 $15 {[%csl Rb3] Les compensations sont insuffisantes}) 25. Ned4 h6
$6 {[%csl Rg6]} 26. Rxc4 $1 (26. Bh4 Rxe4 27. Bg3 $44 {Les pièces Noires sont
très mal placées à l'aile-dame}) 26... bxc4 27. Bxc4 Ra7 $6 (27... Qb7 $2
28. Bxh6 $3 Bxf5 (28... gxh6 29. Qg3+ {[%cal Gg3g7]}) 29. Qg3 $1 {[%cal Gg3g7]}
Bf8 30. Bxg7 $3) (27... Rxe4 28. Nxh6+ gxh6 29. Bxf7+ Kg7 30. Bg6 {[%cal Gb3f7]
} Rf4 $1) (27... Bxf5 $5 {Un échange qui doit soulager un peu la défense des
noirs} 28. Bxf7+ Kh8 29. exf5) 28. Nxc6 Bc5+ 29. Be3 Qxb3 30. Bxb3 Bxf5 (30...
Bxe3+ $142) 31. Bxc5 Rb7 32. Ne7+ $6 $138 (32. Nxa5 {[%cal Ga5b3,Ga5b7]}) 32...
Rexe7 33. Bxe7 (33. exf5 {[%cal Gf5f6] Les Blancs étaient en zeitnot et il
était difficile d'évaluer la finale résultant de l'échange ef5} Rec7 (33...
Rxb3 34. Bxe7) 34. Bd6 Rd7 35. Ba4 $13) 33... Bxe4 $1 34. Rd8+ Kh7 35. Bxf7
Rxe7 36. Bg8+ Kg6 37. Rd6+ Kf5 38. Ra6 Re5 39. Kf2 Kg5 40. Kg3 Bb7 $4 (40...
Rc5) 41. h4+ {[%csl Ga6,Rg5,Gg8] Incroyable, malgré le matériel réduit le roi
est dans un réseau de mat!} (41. h4+ Kf5 42. Bh7+ g6 43. Bxg6#) 1-0